fUST/lending_fUST_20250521
["ID","MTS","AMOUNT","RATE_DAILY","PERIOD"]
[361798953,1747813839135,-500.0,0.00016437,2]
[361798955,1747813839145,-157.58584454,0.00016437,2]
[361798957,1747813839156,-500.0,0.00016437,2]
[361798959,1747813839166,-500.0,0.00016437,2]
[361798961,1747813839175,-387.89130758,0.00016437,2]
[361798963,1747813839185,-500.0,0.00016437,2]
[361798965,1747813839195,-3294.82971991,0.00016438,3]
[361798967,1747813839204,-15027.74062668,0.00016438,2]
[361798969,1747813839214,-430.0,0.00016438,2]
[361798971,1747813839223,-430.0,0.00016438,2]
[361798973,1747813839233,-452.09428627,0.00016438,2]
[361798975,1747813839242,-430.0,0.00016438,2]
[361798977,1747813839252,-455.79979283,0.00016438,2]
[361798979,1747813839263,-433.8830706,0.00016438,2]
[361798981,1747813839272,-561.72696333,0.00016438,2]
[361798983,1747813839282,-405.2765632,0.00016438,2]
[361798985,1747813839291,-430.0,0.00016438,2]
[361798987,1747813839302,-430.0,0.00016438,2]
[361798989,1747813839311,-434.7043347,0.00016438,2]
[361798991,1747813839322,-430.0,0.00016438,2]
[361798993,1747813839331,-430.0,0.00016438,2]
[361798995,1747813839341,-430.0,0.00016438,2]
[361798997,1747813839351,-381.12306718,0.00016438,2]
[361798999,1747813839361,-430.0,0.00016438,2]
[361799001,1747813839370,-430.0,0.00016438,2]
[361799003,1747813839380,-430.0,0.00016438,2]
[361799005,1747813839390,-430.0,0.00016438,2]
[361799007,1747813839401,-430.0,0.00016438,2]
[361799010,1747813839412,-430.0,0.00016438,2]
[361799013,1747813839438,-430.0,0.00016438,2]
[361799016,1747813839454,-507.01533246,0.00016438,2]
[361799018,1747813839468,-497.49,0.00016438,2]
[361799020,1747813839481,-430.61093112,0.00016438,2]
[361799023,1747813839495,-441.0036427,0.00016438,2]
[361799025,1747813839508,-430.0,0.00016438,2]
[361799027,1747813839520,-430.0,0.00016438,2]
[361799029,1747813839532,-430.0,0.00016438,2]
[361799032,1747813839546,-430.0,0.00016438,2]
[361799034,1747813839559,-430.0,0.00016438,2]
[361799036,1747813839571,-430.0,0.00016438,2]
[361799038,1747813839583,-430.0,0.00016438,2]
[361799041,1747813839596,-430.0,0.00016438,2]
[361799043,1747813839609,-430.0,0.00016438,2]
[361799045,1747813839621,-430.0,0.00016438,2]
[361799048,1747813839633,-430.0,0.00016438,2]
[361799050,1747813839645,-430.0,0.00016438,2]
[361799052,1747813839658,-453.11,0.00016438,2]
[361799055,1747813839670,-430.0,0.00016438,2]
[361799057,1747813839683,-430.0,0.00016438,2]
[361799060,1747813839696,-430.0,0.00016438,2]
[361799062,1747813839709,-436.14017695,0.00016438,2]
[361799064,1747813839722,-430.0,0.00016438,2]
[361799066,1747813839734,-430.0,0.00016438,2]
[361799068,1747813839745,-430.0,0.00016438,2]
[361799070,1747813839756,-430.0,0.00016438,2]
[361799073,1747813839768,-430.0,0.00016438,2]
[361799075,1747813839780,-430.0,0.00016438,2]
[361799077,1747813839793,-430.0,0.00016438,2]
[361799080,1747813839804,-430.0,0.00016438,2]
[361799082,1747813839817,-430.0,0.00016438,2]
[361799084,1747813839829,-458.12,0.00016438,2]
[361799086,1747813839842,-430.0,0.00016438,2]
[361799089,1747813839854,-430.0,0.00016438,2]
[361799091,1747813839865,-430.0,0.00016438,2]
[361799093,1747813839878,-558.82,0.00016438,2]
[361799095,1747813839889,-430.0,0.00016438,2]
[361799098,1747813839901,-430.0,0.00016438,2]
[361799100,1747813839912,-430.0,0.00016438,2]
[361799102,1747813839925,-430.0,0.00016438,2]
[361799104,1747813839937,-430.0,0.00016438,2]
[361799107,1747813839949,-430.0,0.00016438,2]
[361799109,1747813839960,-430.0,0.00016438,2]
[361799111,1747813839971,-430.0,0.00016438,2]
[361799113,1747813839982,-430.0,0.00016438,2]
[361799115,1747813839995,-430.0,0.00016438,2]
[361799118,1747813840012,-430.0,0.00016438,2]
[361799120,1747813840027,-430.0,0.00016438,2]
[361799122,1747813840040,-430.0,0.00016438,2]
[361799125,1747813840052,-430.0,0.00016438,2]
[361799127,1747813840064,-430.0,0.00016438,2]
[361799129,1747813840075,-430.0,0.00016438,2]
[361799131,1747813840088,-430.0,0.00016438,2]
[361799133,1747813840100,-430.0,0.00016438,2]
[361799136,1747813840112,-430.0,0.00016438,2]
[361799138,1747813840124,-403.3573642,0.00016438,2]
[361799140,1747813840135,-204.21344877,0.00016438,2]
[361799142,1747813840146,-430.0,0.00016438,2]
[361799144,1747813840158,-430.0,0.00016438,2]
[361799147,1747813840171,-448.15910223,0.0001659,2]
[361799149,1747813840184,-320.0,0.00016712,2]
[361799151,1747813840198,-337.06558151,0.00016712,2]
[361799154,1747813840210,-175.88,0.00016712,2]
[361799156,1747813840226,-430.0,0.00016712,2]
[361799159,1747813840239,-430.0,0.00016712,2]
[361799162,1747813840252,-430.0,0.00016712,2]
[361799164,1747813840265,-430.0,0.00016712,2]
[361799166,1747813840278,-430.0,0.00016712,2]
[361799169,1747813840288,-430.0,0.00016712,2]
[361799171,1747813840299,-430.0,0.00016712,2]
[361799173,1747813840309,-417.61615394,0.00016712,2]
[361799175,1747813840320,-430.0,0.00016712,2]
[361799177,1747813840331,-430.0,0.00016712,2]
[361799179,1747813840342,-430.0,0.00016712,2]
[361799182,1747813840353,-430.0,0.00016712,2]
[361799186,1747813840365,-430.0,0.00016712,2]
[361799190,1747813840378,-430.0,0.00016712,2]
[361799193,1747813840392,-402.16,0.00016712,2]
[361799197,1747813840404,-430.0,0.00016712,2]
[361799200,1747813840415,-430.0,0.00016712,2]
[361799203,1747813840427,-315.13,0.00016712,2]
[361799205,1747813840438,-430.0,0.00016712,2]
[361799207,1747813840448,-448.15910223,0.00016934,2]
[361799210,1747813840459,-430.0,0.00016986,2]
[361799213,1747813840470,-253.29,0.00016986,2]
[361799215,1747813840482,-335.36,0.00016986,2]
[361799217,1747813840493,-470.0,0.00016986,2]
[361799220,1747813840505,-430.0,0.00016986,2]
[361799222,1747813840518,-438.88,0.00016986,2]
[361799224,1747813840531,-430.0,0.00016986,2]
[361799226,1747813840542,-430.0,0.00016986,2]
[361799228,1747813840553,-430.0,0.0001726,2]
[361799230,1747813840563,-258.69,0.0001726,2]
[361799232,1747813840573,-272.01,0.0001726,2]
[361799234,1747813840584,-430.0,0.0001726,2]
[361799237,1747813840595,-448.15910223,0.00017279,2]
[361799239,1747813840606,-7456.20848457,0.0001739,2]
[361799241,1747813840617,-430.0,0.00017534,2]
[361799243,1747813840628,-430.0,0.00017534,2]
[361799245,1747813840639,-226.97670221,0.0001761,2]
[361799247,1747813840651,-448.15910223,0.00017624,2]
[361799249,1747813840663,-430.0,0.00017808,2]
[361799252,1747813840675,-430.0,0.00017808,2]
[361799254,1747813840687,-420.0,0.00017922,2]
[361799256,1747813840698,-448.15910223,0.00017969,2]
[361799258,1747813840709,-2537.99212228,0.00018,2]
[361799260,1747813840721,-430.0,0.00018082,2]
[361799263,1747813840733,-430.0,0.00018082,2]
[361799265,1747813840748,-640.02974017,0.0001822,2]
[361799267,1747813840759,-391.53111675,0.0001822,2]
[361799270,1747813840771,-422.71322487,0.00018221,2]
[361799272,1747813840783,-894.64583333,0.00018221,2]
[361799274,1747813840795,-160.0,0.00018221,2]
[361799276,1747813840806,-160.0,0.00018221,2]
[361799279,1747813840818,-11873.10637316,0.00018221,2]
[361799281,1747813840830,-160.0,0.00018221,2]
[361799283,1747813840841,-448.15910223,0.00018314,2]
[361799285,1747813840852,-430.0,0.00018356,2]
[361799287,1747813840864,-553.25,0.00018356,2]
[361799289,1747813840875,-278.16,0.0001863,2]
[361799293,1747813840901,-448.15910223,0.00018659,2]
[361799295,1747813840915,-375.9134576,0.000189,2]
[361799298,1747813840929,-448.15910223,0.00019003,2]
[361799300,1747813840943,-448.15910223,0.00019348,2]
[361799302,1747813840956,-185.4326167,0.00019386,2]
[361799305,1747813840969,-587.0,0.00019587,2]
[361799307,1747813840983,-448.15910223,0.00019693,2]
[361799309,1747813840995,-157.86,0.0002,2]
[361799312,1747813841013,-404.0,0.00020031,2]
[361799314,1747813841025,-448.15910223,0.00020038,2]
[361799316,1747813841037,-151.0,0.00020187,2]
[361799319,1747813841050,-329.775991,0.00020187,2]
[361799321,1747813841061,-448.15910223,0.00020383,3]
[361799323,1747813841074,-154.1627373,0.00020685,2]
[361799325,1747813841088,-318.1172864,0.00020685,2]
[361799327,1747813841101,-448.15910223,0.00020728,3]
[361799330,1747813841114,-462.3644152,0.00020822,2]
[361799332,1747813841128,-174.667458,0.00020822,2]
[361799334,1747813841141,-151.0,0.00020822,2]
[361799336,1747813841154,-151.0,0.00020822,2]
[361799339,1747813841168,-151.0,0.00020935,2]
[361799341,1747813841181,-151.0,0.00020935,2]
[361799343,1747813841194,-151.0,0.00020935,2]
[361799345,1747813841207,-151.0,0.00020935,2]
[361799347,1747813841220,-157.581337,0.00020935,2]
[361799350,1747813841232,-151.0,0.00020935,2]
[361799352,1747813841244,-151.0,0.00020935,2]
[361799354,1747813841257,-151.0,0.00020935,2]
[361799356,1747813841270,-334.579,0.00020976,2]
[361799359,1747813841282,-151.0,0.00021,2]
[361799361,1747813841294,-930.0,0.00021,2]
[361799363,1747813841306,-448.15910223,0.00021072,4]
[361799365,1747813841319,-726.7756522,0.00021096,2]
[361799368,1747813841330,-700.0,0.00021179,2]
[361799395,1747813841593,-160.0,0.00021292,3]
[361799397,1747813841604,-823.0,0.00021407,2]
[361799399,1747813841614,-448.15910223,0.00021417,5]
[361799401,1747813841624,-160.624379,0.00021507,2]
[361799403,1747813841635,-569.9163794,0.00021507,2]
[361799405,1747813841644,-569.9163794,0.00021507,2]
[361799407,1747813841654,-418.8994531,0.00021507,2]
[361799409,1747813841664,-448.15910223,0.00021762,5]
[361799411,1747813841674,-200.0,0.00021917,2]
[361799413,1747813841683,-2303.57,0.00021917,2]
[361799415,1747813841693,-151.0,0.00021918,7]
[361799417,1747813841703,-151.0,0.00021918,7]
[361799419,1747813841712,-151.0,0.00021918,7]
[361799421,1747813841722,-151.0,0.00021918,7]
[361799423,1747813841731,-500.0,0.00021918,2]
[361799425,1747813841741,-629.82351985,0.00021918,2]
[361799428,1747813841752,-500.0,0.00021918,2]
[361799430,1747813841762,-500.0,0.00021918,2]
[361799432,1747813841772,-500.0,0.00021918,2]
[361799434,1747813841782,-500.0,0.00021918,2]
[361799435,1747813841791,-500.0,0.00021918,2]
[361799437,1747813841801,-500.0,0.00021918,2]
[361799439,1747813841810,-185.0,0.00022,2]
[361799442,1747813841821,-448.15910223,0.00022107,6]
[361799444,1747813841830,-160.0,0.00022141,4]
[361799445,1747813841840,-643.788858,0.00022147,2]
[361799448,1747813841851,-200.0,0.00022191,30]
[361799449,1747813841860,-185.0,0.00022192,7]
[361799452,1747813841870,-700.0,0.00022275,2]
[361799454,1747813841880,-151.0,0.00022399,7]
[361799456,1747813841890,-17137.0,0.000224,7]
[361799458,1747813841900,-151.0,0.000224,7]
[361799460,1747813841909,-151.0,0.000224,2]
[361799462,1747813841919,-151.0,0.000224,7]
[361799464,1747813841928,-223.196221,0.000224,7]
[361799466,1747813841938,-151.0,0.000224,7]
[361799468,1747813841948,-151.0,0.000224,7]
[361799470,1747813841959,-198.944208,0.000224,7]
[361799472,1747813841969,-151.0,0.000224,7]
[361799474,1747813841978,-208.145268,0.000224,7]
[361799476,1747813841987,-151.0,0.000224,7]
[361799478,1747813841998,-151.0,0.000224,7]
[361799480,1747813842013,-151.0,0.000224,7]
[361799482,1747813842022,-151.0,0.000224,7]
[361799484,1747813842032,-151.0,0.000224,7]
[361799486,1747813842042,-151.0,0.000224,7]
[361799488,1747813842052,-894.64583333,0.000224,7]
[361799490,1747813842062,-239.88057,0.000224,7]
[361799492,1747813842072,-185.4326167,0.00022435,2]
[361799494,1747813842083,-500.0,0.00022446,2]
[361799496,1747813842092,-448.15910223,0.00022452,7]
[361799498,1747813842102,-200.0,0.00022465,30]
[361799500,1747813842111,-2209.60165195,0.000225,2]
[361799502,1747813842121,-501.18617219,0.00022563,2]
[361799504,1747813842131,-191.33010348,0.00022599,2]
[361799506,1747813842140,-500.69407311,0.000226,8]
[361799508,1747813842150,-500.0,0.000226,8]
[361799510,1747813842160,-60617.39199517,0.000226,7]
[361799512,1747813842169,-163.092108,0.000226,7]
[361799514,1747813842179,-151.0,0.000226,7]
[361799516,1747813842189,-151.0,0.000226,7]
[361799518,1747813842199,-151.0,0.000226,7]
[361799520,1747813842208,-151.0,0.000226,7]
[361799522,1747813842219,-151.0,0.000226,7]
[361799524,1747813842228,-151.0,0.000226,7]
[361799526,1747813842238,-151.0,0.000226,7]
[361799528,1747813842247,-151.0,0.000226,7]
[361799530,1747813842257,-151.0,0.000226,7]
[361799532,1747813842267,-151.0,0.000226,7]
[361799534,1747813842277,-151.0,0.000226,7]
[361799536,1747813842287,-600.0,0.00022644,2]
[361799538,1747813842296,-159.05485592,0.00022658,2]
[361799540,1747813842306,-6546.10379064,0.0002267,3]
[361799550,1747813842404,-340.67332051,0.0002267,3]
[361799553,1747813842416,-296.533642,0.0002267,3]
[361799781,1747813845542,-187.1707534,0.00022658,2]
[361799783,1747813845552,-153.38808334,0.00022658,2]
[361799892,1747813846900,-33.78267006,0.00022658,2]
[361799893,1747813846910,-5459.69121584,0.0002267,3]
[361799894,1747813846921,-160.0,0.0002267,3]
[361799895,1747813846931,-894.64583333,0.0002267,3]
[361799896,1747813846941,-2327.14,0.000227,2]
[361799897,1747813846951,-500.0,0.00022705,2]
[361799898,1747813846960,-200.0,0.00022739,30]
[361799899,1747813846970,-1495.830982,0.0002278,5]
[361799900,1747813846980,-159.05485592,0.00022795,2]
[361799901,1747813846990,-448.15910223,0.00022797,7]
[361799902,1747813847001,-1000.0,0.000228,5]
[361799904,1747813847014,-1000.0,0.0002282,5]
[361799906,1747813847024,-1000.0,0.0002284,5]
[361799907,1747813847034,-1000.0,0.0002286,5]
[361799908,1747813847043,-1000.0,0.0002288,5]
[361799910,1747813847054,-151.0,0.000229,7]
[361799912,1747813847064,-263.82424125,0.000229,3]
[361799914,1747813847073,-1000.0,0.000229,5]
[361799916,1747813847085,-151.0,0.000229,7]
[361799917,1747813847095,-269.176508,0.000229,7]
[361799918,1747813847104,-151.0,0.000229,7]
[361799919,1747813847114,-151.0,0.000229,7]
[361799920,1747813847124,-151.0,0.000229,7]
[361799921,1747813847133,-151.0,0.000229,7]
[361799922,1747813847143,-151.0,0.000229,7]
[361799923,1747813847153,-1000.0,0.0002292,5]
[361799924,1747813847162,-1000.0,0.0002294,5]
[361799925,1747813847175,-1000.0,0.0002296,5]
[361799926,1747813847184,-1000.0,0.0002298,5]
[361799927,1747813847194,-160.0,0.0002299,5]
[361799928,1747813847207,-160.79208214,0.0002299,5]
[361799929,1747813847219,-1000.0,0.00022994,2]
[361799930,1747813847229,-160.0,0.00022999,2]
[361799931,1747813847239,-21940.03819501,0.00023,6]
[361800387,1747815031978,-5000.0,0.00013426,2]
[361800388,1747815031990,-337.863732,0.00013699,2]
[361800389,1747815032001,-300.0,0.00016437,2]
[361800390,1747815032011,-300.0,0.00016437,2]
[361800391,1747815032021,-300.0,0.00016437,2]
[361800392,1747815032031,-1200.0,0.00016437,2]
[361800393,1747815032041,-345.14569846,0.00016438,2]
[361800394,1747815032052,-430.0,0.00016438,2]
[361800395,1747815032061,-477.20748992,0.00016438,2]
[361800396,1747815032070,-430.0,0.00016438,2]
[361800397,1747815032080,-471.97113341,0.00016438,2]
[361800398,1747815032090,-477.90158132,0.00016438,2]
[361800399,1747815032100,-481.77908186,0.00016438,2]
[361800400,1747815032109,-899.25,0.00016438,2]
[361800401,1747815032119,-430.0,0.00016438,2]
[361800402,1747815032129,-480.04,0.00016438,2]
[361800403,1747815032139,-430.0,0.00016438,2]
[361800404,1747815032149,-405.02,0.00016438,2]
[361800405,1747815032159,-430.0,0.00016438,2]
[361800406,1747815032169,-899.25,0.00016712,2]
[361800407,1747815032179,-430.0,0.00016712,2]
[361800408,1747815032188,-480.04,0.00016712,2]
[361800409,1747815032199,-430.0,0.00016712,2]
[361800410,1747815032209,-430.0,0.00016712,2]
[361800411,1747815032218,-204.71411163,0.000169,2]
[361800412,1747815032228,-899.25,0.00016986,2]
[361800413,1747815032238,-430.0,0.00016986,2]
[361800414,1747815032247,-480.04,0.00016986,2]
[361800415,1747815032261,-430.0,0.00016986,2]
[361800416,1747815032273,-430.0,0.00016986,2]
[361800417,1747815032288,-204.71411141,0.0001721,2]
[361800418,1747815032301,-899.25,0.0001726,2]
[361800419,1747815032313,-430.0,0.0001726,2]
[361800420,1747815032327,-480.04,0.0001726,2]
[361800421,1747815032340,-430.0,0.0001726,2]
[361800422,1747815032351,-430.0,0.0001726,2]
[361800423,1747815032362,-204.71411141,0.00017521,2]
[361800424,1747815032374,-899.25,0.00017534,2]
[361800425,1747815032386,-430.0,0.00017534,2]
[361800426,1747815032398,-480.04,0.00017534,2]
[361800427,1747815032411,-430.0,0.00017534,2]
[361800428,1747815032423,-430.0,0.00017534,2]
[361800429,1747815032437,-253.51238828,0.0001755,2]
[361800430,1747815032449,-7219.1101422,0.0001761,2]
[361800431,1747815032461,-167.72593156,0.00017707,2]
[361800432,1747815032474,-899.25,0.00017808,2]
[361800433,1747815032488,-430.0,0.00017808,2]
[361800434,1747815032499,-480.04,0.00017808,2]
[361800435,1747815032512,-430.0,0.00017808,2]
[361800436,1747815032523,-430.0,0.00017808,2]
[361800437,1747815032535,-204.71411141,0.00017831,2]
[361800438,1747815032547,-420.0,0.00017963,2]
[361800439,1747815032560,-420.0,0.00017963,2]
[361800440,1747815032571,-899.25,0.00018082,2]
[361800441,1747815032583,-430.0,0.00018082,2]
[361800442,1747815032595,-480.04,0.00018082,2]
[361800443,1747815032606,-430.0,0.00018082,2]
[361800444,1747815032619,-430.0,0.00018082,2]
[361800445,1747815032633,-204.71411141,0.00018141,2]
[361800446,1747815032645,-212.41679935,0.00018234,2]
[361800447,1747815032656,-899.25,0.00018356,2]
[361800448,1747815032668,-430.0,0.00018356,2]
[361800449,1747815032680,-480.04,0.00018356,2]
[361800450,1747815032694,-430.0,0.00018356,2]
[361800451,1747815032706,-500.0,0.00018356,2]
[361800452,1747815032719,-430.0,0.00018356,2]
[361800453,1747815032730,-500.0,0.00018383,2]
[361800454,1747815032742,-467.40632534,0.00018411,2]
[361800455,1747815032754,-204.71411141,0.00018452,2]
[361800456,1747815032765,-899.25,0.0001863,2]
[361800457,1747815032777,-430.0,0.0001863,2]
[361800458,1747815032787,-480.04,0.0001863,2]
[361800459,1747815032798,-430.0,0.0001863,2]
[361800460,1747815032811,-317.36,0.0001863,2]
[361800461,1747815032822,-204.71411141,0.00018762,2]
[361800462,1747815032832,-899.25,0.00018904,2]
[361800463,1747815032844,-430.0,0.00018904,2]
[361800464,1747815032856,-480.04,0.00018904,2]
[361800465,1747815032868,-430.0,0.00018904,2]
[361800466,1747815032879,-204.71411141,0.00019072,2]
[361800467,1747815032891,-899.25,0.00019178,2]
[361800468,1747815032903,-430.0,0.00019178,2]
[361800469,1747815032914,-480.04,0.00019178,2]
[361800470,1747815032925,-430.0,0.00019178,2]
[361800471,1747815032938,-204.71411141,0.00019383,2]
[361800472,1747815032950,-899.25,0.00019452,2]
[361800473,1747815032962,-430.0,0.00019452,2]
[361800474,1747815032974,-480.04,0.00019452,2]
[361800475,1747815032988,-587.0,0.00019631,2]
[361800476,1747815033000,-204.71411141,0.00019693,2]
[361800477,1747815033012,-899.25,0.00019726,2]
[361800478,1747815033024,-430.0,0.00019726,2]
[361800479,1747815033034,-480.04,0.00019726,2]
[361800480,1747815033045,-899.25,0.0002,2]
[361800481,1747815033056,-430.0,0.0002,2]
[361800482,1747815033067,-480.04,0.0002,2]
[361800483,1747815033079,-204.71411141,0.00020003,2]
[361800484,1747815033090,-337.863732,0.00020187,2]
[361800485,1747815033103,-899.25,0.00020273,2]
[361800486,1747815033116,-430.0,0.00020273,2]
[361800487,1747815033128,-480.04,0.00020273,2]
[361800488,1747815033140,-167.72593154,0.00020298,2]
[361800489,1747815033154,-204.71411141,0.00020314,3]
[361800490,1747815033164,-899.25,0.00020547,2]
[361800491,1747815033175,-430.0,0.00020547,2]
[361800492,1747815033185,-480.04,0.00020547,2]
[361800493,1747815033197,-204.71411141,0.00020624,3]
[361800494,1747815033208,-404.0,0.00020687,2]
[361800495,1747815033219,-250.60897173,0.000208,2]
[361800496,1747815033231,-899.25,0.00020821,2]
[361800497,1747815033244,-430.0,0.00020821,2]
[361800498,1747815033256,-480.04,0.00020821,2]
[361800499,1747815033268,-235.194206,0.00020843,2]
[361800500,1747815033279,-204.71411141,0.00020934,4]
[361800501,1747815033289,-160.0,0.00020971,2]
[361800502,1747815033300,-160.0,0.00020971,2]
[361800503,1747815033311,-894.64583333,0.00020971,2]
[361800504,1747815033323,-422.71322487,0.00020971,2]
[361800505,1747815033334,-160.0,0.00020972,2]
[361800506,1747815033346,-12643.00196899,0.00020984,2]
[361800507,1747815033358,-899.25,0.00021095,2]
[361800508,1747815033370,-430.0,0.00021095,2]
[361800509,1747815033381,-480.04,0.00021095,2]
[361800510,1747815033392,-600.0,0.00021179,2]
[361800511,1747815033404,-204.71411141,0.00021245,4]
[361800512,1747815033416,-3988.9084646,0.00021268,2]
[361800513,1747815033428,-899.25,0.00021369,2]
[361800514,1747815033443,-430.0,0.00021369,2]
[361800515,1747815033455,-480.04,0.00021369,2]
[361800516,1747815033467,-823.0,0.00021454,2]
[361800517,1747815033480,-204.71411141,0.00021555,5]
[361800518,1747815033492,-500.0,0.000216,7]
[361800519,1747815033505,-575.15,0.000216,7]
[361800520,1747815033517,-899.25,0.00021643,2]
[361800521,1747815033529,-430.0,0.00021643,2]
[361800522,1747815033540,-480.04,0.00021643,2]
[361800523,1747815033552,-302.263,0.00021733,2]
[361800524,1747815033563,-204.71411141,0.00021866,6]
[361800525,1747815033574,-208.89028852,0.000219,2]
[361800526,1747815033585,-899.25,0.00021917,2]
[361800527,1747815033597,-430.0,0.00021917,2]
[361800528,1747815033609,-480.04,0.00021917,2]
[361800529,1747815033620,-158.0,0.00022,2]
[361800530,1747815033631,-208.89028848,0.0002215,2]
[361800531,1747815033643,-204.71411141,0.00022176,6]
[361800532,1747815033654,-899.25,0.00022191,2]
[361800533,1747815033666,-430.0,0.00022191,2]
[361800534,1747815033678,-480.04,0.00022191,2]
[361800535,1747815033690,-158.0,0.00022192,7]
[361800536,1747815033701,-600.0,0.00022275,2]
[361800537,1747815033713,-208.89028848,0.000224,2]
[361800538,1747815033724,-154.138516,0.0002246,2]
[361800539,1747815033735,-899.25,0.00022465,2]
[361800540,1747815033747,-194.37,0.00022465,2]
[361800541,1747815033759,-480.04,0.00022465,2]
[361800542,1747815033771,-204.71411141,0.00022486,7]
[361800543,1747815033782,-4023.3570671,0.000225,14]
[361800544,1747815033794,-579.409972,0.00022539,2]
[361800545,1747815033806,-208.89028848,0.0002265,2]
[361800546,1747815033817,-2094.43,0.000227,2]
[361800547,1747815033828,-899.25,0.00022739,2]
[361800548,1747815033840,-480.26,0.00022739,2]
[361800549,1747815033852,-204.71411141,0.00022797,7]
[361800550,1747815033864,-600.0,0.00022856,2]
[361800551,1747815033876,-200.0,0.00022865,30]
[361800552,1747815033888,-167.72593154,0.0002289,2]
[361800553,1747815033899,-3936.41677863,0.000229,2]
[361800554,1747815033911,-208.89028848,0.000229,2]
[361800555,1747815033923,-500.0,0.000229,2]
[361800556,1747815033934,-500.4602455,0.00022973,2]
[361800557,1747815033947,-154.138516,0.00022977,3]
[361800558,1747815033959,-183.01140333,0.00022999,2]
[361800559,1747815033973,-448.02081812,0.00022999,2]
[361800560,1747815033984,-500.0,0.00022999,2]
[361800561,1747815033996,-500.0,0.00022999,2]
[361800562,1747815034007,-500.0,0.00022999,2]
[361800563,1747815034019,-390.87646389,0.00022999,2]
[361800564,1747815034031,-500.0,0.00022999,2]
[361800565,1747815034323,-500.0,0.00022999,2]
[361800566,1747815034335,-500.0,0.00022999,2]
[361800567,1747815034345,-250.0,0.00022999,2]
[361800568,1747815034355,-160.0,0.00022999,2]
[361800569,1747815034365,-33092.84139884,0.00023,2]
[361800570,1747815034376,-4222.2009348,0.00023,3]
[361800571,1747815034386,-4476506.8280563,0.00023,6]
[361800572,1747815034396,-1000.0,0.00023,2]
[361800573,1747815034405,-50000.0,0.00023,2]
[361800574,1747815034415,-50000.0,0.00023,2]
[361800575,1747815034425,-50000.0,0.00023,2]
[361800576,1747815034437,-50000.0,0.00023,2]
[361800577,1747815034447,-50000.0,0.00023,2]
[361800578,1747815034460,-50000.0,0.00023,2]
[361800579,1747815034470,-232.4,0.00023,2]
[361800580,1747815034481,-247.0,0.00023,120]
[361800581,1747815034491,-30005.33326783,0.00023,3]
[361800582,1747815034501,-154.7,0.00023,30]
[361800583,1747815034512,-1999.99999901,0.00023,2]
[361800584,1747815034522,-113517.05091551,0.00023,14]
[361800585,1747815034531,-160.0,0.00023,3]
[361800586,1747815034541,-207.0,0.00023,7]
[361800587,1747815034551,-151.0,0.00023,7]
[361800588,1747815034561,-151.0,0.00023,7]
[361800589,1747815034571,-152.114999,0.00023,7]
[361800590,1747815034581,-151.664068,0.00023,7]
[361800591,1747815034591,-151.0,0.00023,7]
[361800592,1747815034601,-151.0,0.00023,7]